bitfinex-derivatives/quotes_BTCF0:USTF0_20251009
["timestamp","ask_amount","ask_price","bid_price","bid_amount"]
[1759976779687,0.89940386,122200.0,122190.0,0.93529302]
[1759976780195,0.89940386,122200.0,122190.0,0.19305302]
[1759976780394,0.89940386,122200.0,122190.0,0.93529302]
[1759976780791,0.89940386,122200.0,122190.0,0.19305302]
[1759976780985,0.89940386,122200.0,122190.0,0.93529302]
[1759976781893,0.96636233,122200.0,122190.0,0.74424]
[1759976782085,0.96636233,122200.0,122190.0,0.93529302]
[1759976782291,0.97482051,122200.0,122190.0,0.93529302]
[1759976785399,0.97482051,122200.0,122190.0,0.38410604]
[1759976785698,0.97482051,122200.0,122190.0,1.12638604]
[1759976789497,0.97482051,122200.0,122190.0,0.38410604]
[1759976789696,0.97482051,122200.0,122190.0,1.12642604]
[1759976790603,0.97482051,122200.0,122190.0,0.38410604]
[1759976790804,0.97482051,122200.0,122190.0,1.12638604]
[1759976792896,0.97482051,122200.0,122190.0,0.38410604]
[1759976793104,0.96636233,122200.0,122190.0,1.12638604]
[1759976797213,0.97453312,122200.0,122190.0,1.12638604]
[1759976799916,0.61373312,122200.0,122190.0,1.12638604]
[1759976800109,0.97453312,122200.0,122190.0,1.12638604]
[1759976801712,0.97453312,122200.0,122190.0,0.002]
[1759976801912,0.97453312,122200.0,122190.0,1.12638604]
[1759976802108,0.97453312,122200.0,122190.0,0.38410604]
[1759976802315,0.57453312,122200.0,122190.0,1.12638604]
[1759976805411,0.633032,122200.0,122190.0,1.12638604]
[1759976805615,0.633032,122200.0,122190.0,0.38410604]
[1759976805820,0.633032,122200.0,122190.0,1.12638604]
[1759976807424,0.633032,122200.0,122190.0,0.38410604]
[1759976807621,0.633032,122200.0,122190.0,1.12638604]
[1759976808122,0.633032,122200.0,122190.0,0.74428]
[1759976808321,0.633032,122200.0,122190.0,1.12638604]
[1759976808822,0.633032,122200.0,122190.0,0.38410604]
[1759976809022,0.633032,122200.0,122190.0,1.12638604]
[1759976812925,0.633032,122200.0,122190.0,0.38410604]
[1759976813126,0.633032,122200.0,122190.0,1.12634604]
[1759976814022,0.633032,122200.0,122190.0,0.74424]
[1759976814222,0.633032,122200.0,122190.0,0.38410604]
[1759976814423,0.57453312,122200.0,122190.0,0.74424]
[1759976814624,0.57453312,122200.0,122190.0,1.12634604]
[1759976816030,0.57453312,122200.0,122190.0,0.74424]
[1759976816228,0.57453312,122200.0,122190.0,1.12634604]
[1759976816924,0.57453312,122200.0,122190.0,0.38410604]
[1759976817225,0.57453312,122200.0,122190.0,0.002]
[1759976817226,1.41523123,122200.0,122190.0,0.002]
[1759976817631,1.22417821,122200.0,122190.0,0.19305302]
[1759976817832,1.03312519,122200.0,122190.0,0.002]
[1759976818428,0.97453312,122200.0,122190.0,0.002]
[1759976820532,1.03312519,122200.0,122190.0,0.002]
[1759976821138,0.1168134,122160.0,122150.0,0.4426501]
[1759976821336,0.13582066,122160.0,122150.0,1.43979008]
[1759976821531,0.13582066,122160.0,122150.0,0.4426501]
[1759976821838,0.13582066,122160.0,122150.0,1.35793998]
[1759976822038,0.13582066,122160.0,122150.0,1.43979008]
[1759976822438,0.13582066,122160.0,122150.0,1.44979008]
[1759976822637,0.13682066,122160.0,122150.0,1.45279008]
[1759976822838,0.13682066,122160.0,122150.0,0.71055008]
[1759976823135,0.13682066,122160.0,122150.0,1.45279008]
[1759976823335,0.13682066,122160.0,122150.0,0.71055008]
[1759976823540,0.13582066,122160.0,122150.0,1.44979008]
[1759976823742,0.13582066,122160.0,122150.0,0.70855008]
[1759976824041,0.13582066,122160.0,122150.0,1.45079008]
[1759976824242,0.13582066,122160.0,122150.0,0.70855008]
[1759976824540,0.13582066,122160.0,122150.0,1.45079008]
[1759976824943,0.13582066,122160.0,122150.0,1.44079008]
[1759976825146,0.13582066,122160.0,122150.0,1.44579008]
[1759976825344,0.13582066,122160.0,122150.0,0.70255008]
[1759976825544,0.13782066,122160.0,122150.0,1.44079008]
[1759976825744,0.13782066,122160.0,122150.0,1.44379008]
[1759976829147,0.13782066,122160.0,122150.0,0.70155008]
[1759976829342,0.13782066,122160.0,122150.0,1.44379008]
[1759976830249,0.13782066,122160.0,122150.0,0.70155008]
[1759976830549,0.13782066,122160.0,122150.0,1.44379008]
[1759976832150,0.13782066,122160.0,122150.0,1.1888901]
[1759976832351,0.13782066,122160.0,122150.0,1.36193998]
[1759976832949,0.13782066,122160.0,122150.0,1.44379008]
[1759976833555,0.13782066,122160.0,122150.0,0.70155008]
[1759976833848,0.13782066,122160.0,122150.0,1.44379008]
[1759976835648,0.13782066,122160.0,122150.0,0.25889998]
[1759976835846,0.49862066,122160.0,122150.0,1.00113998]
[1759976836552,0.49862066,122160.0,122150.0,0.25889998]
[1759976836755,0.49862066,122160.0,122150.0,1.00113998]
[1759976838152,0.49862066,122160.0,122150.0,0.74624]
[1759976838353,0.49862066,122160.0,122150.0,1.00113998]
[1759976838951,0.49862066,122160.0,122150.0,0.25889998]
[1759976839152,0.49862066,122160.0,122150.0,1.00113998]
[1759976840254,0.49862066,122160.0,122150.0,0.74624]
[1759976840656,0.49862066,122160.0,122150.0,1.00113998]
[1759976842158,0.49862066,122160.0,122150.0,0.74624]
[1759976842653,0.49862066,122160.0,122150.0,1.00113998]
[1759976844656,0.50668495,122160.0,122150.0,1.00113998]
[1759976845054,0.50668495,122160.0,122150.0,0.004]
[1759976845255,0.90668495,122160.0,122150.0,1e-07]
[1759976845647,1.16158493,122160.0,122150.0,1e-07]
[1759976846256,1.22620215,122160.0,122150.0,1e-07]
[1759976848358,1.96980215,122160.0,122150.0,1e-07]
[1759976852357,1.96968215,122160.0,122150.0,1e-07]
[1759976852563,1.22620215,122160.0,122150.0,1e-07]
[1759976852765,1.96968215,122160.0,122150.0,1e-07]
[1759976852965,1.71478217,122160.0,122150.0,1e-07]
[1759976853164,1.96968215,122160.0,122150.0,1e-07]
[1759976853364,1.96964215,122160.0,122150.0,1e-07]
[1759976854063,1.22620215,122160.0,122150.0,1e-07]
[1759976854465,1.96960215,122160.0,122150.0,1e-07]
[1759976854764,1.71470217,122160.0,122150.0,1e-07]
[1759976854964,2.02819422,122160.0,122150.0,1e-07]
[1759976855775,2.02815422,122160.0,122150.0,1e-07]
[1759976857570,1.77317424,122160.0,122150.0,1e-07]
[1759976857765,2.02807422,122160.0,122150.0,1e-07]
[1759976858771,1.28479422,122160.0,122150.0,1e-07]
[1759976858965,2.02803422,122160.0,122150.0,1e-07]
[1759976860469,1.02989424,122160.0,122150.0,1e-07]
[1759976860672,1.37305424,122160.0,122150.0,1e-07]
[1759976860970,1.37305424,122160.0,122150.0,0.25490008]
[1759976862971,0.88479422,122160.0,122150.0,1e-07]
[1759976863166,1.62795422,122160.0,122150.0,1e-07]
[1759976864261,0.88479422,122160.0,122150.0,1e-07]
[1759976864465,1.37301424,122160.0,122150.0,1e-07]
[1759976864668,1.62791422,122160.0,122150.0,1e-07]
[1759976864867,1.56932215,122160.0,122150.0,1e-07]
[1759976865867,1.31442217,122160.0,122150.0,1e-07]
[1759976866167,1.96932215,122160.0,122150.0,1e-07]
[1759976866372,1.96931215,122160.0,122150.0,1e-07]
[1759976867471,1.96959215,122160.0,122150.0,1e-07]
[1759976867668,1.96759215,122160.0,122150.0,1e-07]
[1759976867972,1.22731215,122160.0,122150.0,0.0010001]
[1759976868172,1.97055215,122160.0,122150.0,0.001]
[1759976868368,1.22931215,122160.0,122150.0,0.001]
[1759976869072,1.97251215,122160.0,122150.0,0.001]
[1759976870876,2.03110422,122160.0,122150.0,0.001]
[1759976871671,0.1160202,122120.0,122110.0,0.76183512]
[1759976871872,0.13502746,122120.0,122110.0,1.0167351]
[1759976873278,0.13502746,122120.0,122110.0,1.4545351]
[1759976873477,0.13502746,122120.0,122110.0,1.4544551]
[1759976873878,0.13602746,122120.0,122110.0,1.4574551]
[1759976874278,0.13602746,122120.0,122110.0,0.7144151]
[1759976874470,0.13602746,122120.0,122110.0,1.4573751]
[1759976875180,0.13602746,122120.0,122110.0,0.7144151]
[1759976875476,0.13602746,122120.0,122110.0,1.4573751]
[1759976875680,0.13602746,122120.0,122110.0,0.7144151]
[1759976875880,0.13602746,122120.0,122110.0,1.4573351]
[1759976876181,0.13602746,122120.0,122110.0,0.7144151]
[1759976876383,0.13602746,122120.0,122110.0,1.4573351]
[1759976876684,0.13602746,122120.0,122110.0,0.7144151]
[1759976876873,0.13602746,122120.0,122110.0,1.4572951]
[1759976877483,0.13602746,122120.0,122110.0,1.4572551]
[1759976877979,0.13602746,122120.0,122110.0,1.58499368]
[1759976878173,0.13602746,122120.0,122110.0,0.84215368]
[1759976878379,0.13602746,122120.0,122110.0,1.58495368]
[1759976879482,0.13602746,122120.0,122110.0,0.84215368]
[1759976879885,0.13602746,122120.0,122110.0,1.58491368]
[1759976880283,0.13602746,122120.0,122110.0,1.58487368]
[1759976880882,0.13602746,122120.0,122110.0,0.76028058]
[1759976881187,0.13602746,122120.0,122110.0,1.22407748]
[1759976881489,0.13602746,122120.0,122110.0,0.48135748]
[1759976881783,0.13602746,122120.0,122110.0,1.22407748]
[1759976882988,0.13602746,122120.0,122110.0,0.01684202]
[1759976883188,0.13602746,122120.0,122110.0,0.2081613]
[1759976883390,0.13674512,122120.0,122110.0,0.9508013]
[1759976883683,0.88018368,122120.0,122110.0,0.01684202]
[1759976883891,0.6888644,122120.0,122110.0,0.2081613]
[1759976884091,0.49754512,122120.0,122110.0,0.2081613]
[1759976884393,0.6888644,122120.0,122110.0,0.2081613]
[1759976884592,0.6888644,122120.0,122110.0,0.2071613]
[1759976884798,0.6888644,122120.0,122110.0,0.01584202]
[1759976884993,0.6888644,122120.0,122110.0,0.00984202]
[1759976885299,0.6888644,122120.0,122110.0,0.2051613]
[1759976885698,0.49754512,122120.0,122110.0,0.2051613]
[1759976885897,0.6888644,122120.0,122110.0,0.2051613]
[1759976886097,1.28018368,122120.0,122110.0,0.01384202]
[1759976888697,1.28018368,122120.0,122110.0,0.01184202]
[1759976889194,1.27918368,122120.0,122110.0,0.00984202]
[1759976889395,1.28018368,122120.0,122110.0,0.01084202]
[1759976890001,0.1179036,122100.0,122090.0,0.93415928]
[1759976890208,0.6897478,122100.0,122090.0,0.93415928]
[1759976890701,0.49842852,122100.0,122090.0,0.19292928]
[1759976890907,0.05574492,122100.0,122090.0,0.46613886]
[1759976891203,0.13762852,122100.0,122090.0,0.46613886]
[1759976891396,0.13762852,122100.0,122090.0,0.38424856]
[1759976891598,0.49842852,122100.0,122090.0,0.38424856]
[1759976891797,0.49842852,122100.0,122090.0,0.19292928]
[1759976892001,0.49842852,122100.0,122090.0,0.19692928]
[1759976892201,0.49942852,122100.0,122090.0,0.19992928]
[1759976892695,0.56460799,122100.0,122090.0,0.19992928]
[1759976893306,0.75592727,122100.0,122090.0,0.19831928]
[1759976893804,0.56460799,122100.0,122090.0,0.19831928]
[1759976894005,0.75592727,122100.0,122090.0,0.19831928]
[1759976895499,0.75592727,122100.0,122090.0,0.007]
[1759976895705,0.75592727,122100.0,122090.0,0.19831928]
[1759976897806,0.75592727,122100.0,122090.0,0.007]
[1759976898005,0.75592727,122100.0,122090.0,0.19831928]
[1759976899511,0.56460799,122100.0,122090.0,0.19992928]
[1759976901807,0.75592727,122100.0,122090.0,0.19992928]
[1759976905716,0.56460799,122100.0,122090.0,0.19992928]
[1759976905913,0.75592727,122100.0,122090.0,0.19831928]
[1759976906714,0.75592727,122100.0,122090.0,0.19992928]
[1759976909817,0.56460799,122100.0,122090.0,0.19992928]
[1759976910023,0.75592727,122100.0,122090.0,0.19992928]
[1759976910323,0.48272439,122100.0,122090.0,0.47313886]
[1759976910528,0.12192439,122100.0,122090.0,1.61589886]
[1759976911018,0.56460799,122100.0,122090.0,0.68181958]
[1759976911220,0.20380799,122100.0,122090.0,1.42457958]
[1759976911821,0.12192439,122100.0,122090.0,1.42457958]
[1759976912119,0.12192439,122100.0,122090.0,0.68181958]
[1759976912324,0.03385492,122100.0,122090.0,1.23393886]
[1759976912722,0.03385492,122100.0,122090.0,1.97669886]
[1759976913825,0.03385492,122100.0,122090.0,1.23393886]
[1759976914025,0.03385492,122100.0,122090.0,1.97669886]
[1759976915419,0.02072492,122100.0,122090.0,1.23393886]
[1759976915625,0.02072492,122100.0,122090.0,1.97669886]
[1759976916126,0.03389492,122100.0,122090.0,1.97669886]
[1759976918828,0.02072492,122100.0,122090.0,1.23393886]
[1759976919026,0.02072492,122100.0,122090.0,1.97665886]
[1759976919222,0.03551,122130.0,122120.0,0.00161]
[1759976919424,0.01317,122140.0,122130.0,0.0834735]
[1759976919624,0.01317,122140.0,122130.0,1.57027206]
[1759976919822,0.0950268,122140.0,122130.0,1.20947206]
[1759976920026,0.66991608,122140.0,122130.0,0.00161]
[1759976920331,0.66991608,122140.0,122130.0,0.93752928]
[1759976920527,0.66991608,122140.0,122130.0,0.74621]
[1759976920737,0.1198035,122130.0,122120.0,0.19392928]
[1759976920922,0.4806035,122130.0,122120.0,0.19392928]
[1759976921229,0.4806035,122130.0,122120.0,0.93872928]
[1759976921422,0.4786035,122130.0,122120.0,0.19292928]
[1759976921822,0.4786035,122130.0,122120.0,0.93776928]
[1759976922022,0.4826035,122130.0,122120.0,0.93776928]
[1759976922231,0.1238035,122130.0,122120.0,0.38524856]
[1759976922531,0.04194,122130.0,122120.0,0.82791876]
[1759976922723,0.01917,122130.0,122120.0,1.57271876]
[1759976922923,0.006,122130.0,122120.0,1.97271876]
[1759976923329,0.01939,122130.0,122120.0,1.97271876]
[1759976923520,0.006,122130.0,122120.0,1.41923804]
[1759976923722,0.006,122130.0,122120.0,2.16423804]
[1759976924332,0.006,122130.0,122120.0,1.41923804]
[1759976924533,0.006,122130.0,122120.0,2.16423804]
[1759976924728,0.006,122130.0,122120.0,1.42764586]
[1759976924929,0.006,122130.0,122120.0,2.17260586]
[1759976925129,0.006,122130.0,122120.0,1.42764586]
[1759976925331,0.006,122130.0,122120.0,2.17264586]
[1759976925531,0.006,122130.0,122120.0,1.42764586]
[1759976926332,0.006,122130.0,122120.0,2.17264586]
[1759976926533,0.0818501,122150.0,122140.0,0.0834668]
[1759976926739,0.0818501,122150.0,122140.0,1.40242464]
[1759976926934,0.4558172,122160.0,122140.0,1.40242464]
[1759976927141,0.3166372,122160.0,122150.0,0.46609866]
[1759976927439,0.3166372,122160.0,122150.0,1.21105866]
[1759976928338,0.3266372,122160.0,122150.0,1.21105866]
[1759976928639,0.3286372,122160.0,122150.0,1.21205866]
[1759976928935,0.3226372,122160.0,122150.0,0.46709866]
[1759976929440,0.3226372,122160.0,122150.0,1.57269866]
[1759976929741,0.3226372,122160.0,122150.0,1.57265866]
[1759976929933,0.3226372,122160.0,122150.0,1.21185866]
[1759976930938,0.3226372,122160.0,122150.0,1.57257866]
[1759976931139,0.24079,122160.0,122150.0,0.82789866]
[1759976931338,0.02531939,122160.0,122150.0,1.57257866]
[1759976932342,0.02531939,122160.0,122150.0,0.82789866]
[1759976932536,0.02531939,122160.0,122150.0,1.41921794]
[1759976932840,0.02531939,122160.0,122150.0,1.97253866]
[1759976933535,0.12055279,122160.0,122150.0,1.22789866]
[1759976933731,0.14217279,122160.0,122150.0,1.97253866]
[1759976934138,0.14217279,122160.0,122150.0,0.4452601]
[1759976934441,0.14217279,122160.0,122150.0,1.02033938]
[1759976935537,0.14217279,122160.0,122150.0,0.8291801]
[1759976935839,0.14217279,122160.0,122150.0,1.02049938]
[1759976936940,0.14217279,122160.0,122150.0,0.27577938]
[1759976937142,0.50297279,122160.0,122150.0,0.19392928]
[1759976937336,0.50297279,122160.0,122150.0,0.93848928]
[1759976937546,0.50297279,122160.0,122150.0,0.19392928]
[1759976937742,0.50297279,122160.0,122150.0,0.93844928]
[1759976937945,0.50297279,122160.0,122150.0,1.00210071]
[1759976938539,0.50297279,122160.0,122150.0,0.25762071]
[1759976938738,0.90297279,122160.0,122150.0,0.001]
[1759976939044,0.90297279,122160.0,122150.0,0.74544]
[1759976939045,1.1579835,122160.0,122150.0,0.74544]
[1759976939233,0.0818568,122140.0,122130.0,0.36241]
[1759976939439,0.13618619,122140.0,122130.0,1.36210071]
[1759976939841,0.05432939,122140.0,122130.0,1.36210071]
[1759976940443,0.03370939,122140.0,122130.0,0.70128421]
[1759976940644,0.05532939,122140.0,122130.0,0.62342071]
[1759976940947,0.13718619,122140.0,122130.0,1.36802071]
[1759976941945,0.13718619,122140.0,122130.0,1.36798071]
[1759976943047,0.13618619,122140.0,122130.0,1.36598071]
[1759976943245,0.13718619,122140.0,122130.0,0.62242071]
[1759976943448,0.13718619,122140.0,122130.0,1.36286071]
[1759976943648,0.13718619,122140.0,122130.0,1.36486071]
[1759976944138,0.13718619,122140.0,122130.0,1.36482071]
[1759976944341,0.13718619,122140.0,122130.0,0.62042071]
[1759976944536,0.13718619,122140.0,122130.0,1.36482071]
[1759976945148,0.13718619,122140.0,122130.0,1.44668421]
[1759976945549,0.13718619,122140.0,122130.0,1.08588421]
[1759976946140,0.13718619,122140.0,122130.0,1.00394071]
[1759976946450,0.13718619,122140.0,122130.0,1.08580421]
[1759976947843,0.05532939,122140.0,122130.0,1.44660421]
[1759976948148,0.05532939,122140.0,122130.0,1.08580421]
[1759976949047,0.13718619,122140.0,122130.0,1.08580421]
[1759976949348,0.13718619,122140.0,122130.0,1.00394071]
[1759976949746,0.49798619,122140.0,122130.0,1.00370071]
[1759976950145,0.49798619,122140.0,122130.0,0.25962071]
[1759976950452,0.13718619,122140.0,122130.0,1.08556421]
[1759976950946,0.05532939,122140.0,122130.0,0.34148421]
[1759976951142,0.02031939,122140.0,122130.0,1.84632421]
[1759976951349,0.02031939,122140.0,122130.0,1.84628421]
[1759976951740,0.02031939,122140.0,122130.0,1.10228421]
[1759976951947,0.02031939,122140.0,122130.0,1.84636421]
[1759976952144,0.02031939,122140.0,122130.0,1.10228421]
[1759976952341,0.02031939,122140.0,122130.0,1.84636421]
[1759976952545,0.02031939,122140.0,122130.0,1.10228421]
[1759976952746,0.02031939,122140.0,122130.0,1.84632421]
[1759976953252,0.02031939,122140.0,122130.0,1.10228421]
[1759976953750,0.02031939,122140.0,122130.0,1.84632421]
[1759976954053,0.02031939,122140.0,122130.0,1.10228421]
[1759976954352,0.02031939,122140.0,122130.0,1.84632421]
[1759976955253,0.02031939,122140.0,122130.0,1.10228421]
[1759976955552,0.02031939,122140.0,122130.0,1.84628421]
[1759976958849,0.02031939,122140.0,122130.0,1.10228421]
[1759976959055,0.02031939,122140.0,122130.0,1.84604421]
[1759976959258,0.02031939,122140.0,122130.0,1.10228421]
[1759976959559,0.02031939,122140.0,122130.0,1.84600421]
[1759976960648,0.11563619,122140.0,122130.0,1.10228421]
[1759976961054,0.10217619,122140.0,122130.0,1.84592421]
[1759976962158,0.10217619,122140.0,122130.0,1.10228421]
[1759976962559,0.11563619,122140.0,122130.0,1.84584421]
[1759976962760,0.10217619,122140.0,122130.0,1.84584421]
[1759976962956,0.11563619,122140.0,122130.0,1.84584421]
[1759976963362,0.11563619,122140.0,122130.0,1.84580421]
[1759976966456,0.11563619,122140.0,122130.0,1.10228421]
[1759976966653,0.13722619,122140.0,122130.0,1.44564421]
[1759976967362,0.13722619,122140.0,122130.0,0.70228421]
[1759976967967,0.13722619,122140.0,122130.0,1.44560421]
[1759976969167,0.13722619,122140.0,122130.0,0.70228421]
[1759976969464,0.13722619,122140.0,122130.0,1.44560421]
[1759976969763,0.53722619,122140.0,122130.0,0.70228421]
[1759976969970,0.53722619,122140.0,122130.0,1.44564421]
[1759976970664,0.53722737,122140.0,122130.0,1.44564421]
[1759976974073,0.53722737,122140.0,122130.0,1.08484421]
[1759976974266,0.53722737,122140.0,122130.0,0.25962071]
[1759976974467,0.89802737,122140.0,122130.0,0.25962071]
[1759976974668,0.89802737,122140.0,122130.0,1.00282071]
[1759976974968,0.89802737,122140.0,122130.0,1.08468421]
[1759976976076,0.89802737,122140.0,122130.0,0.34148421]
[1759976976270,0.13722737,122140.0,122130.0,1.08464421]
[1759976976570,0.13722737,122140.0,122130.0,1.44548421]
[1759976976773,0.13722737,122140.0,122130.0,1.08468421]
[1759976976974,0.13722737,122140.0,122130.0,0.34148421]
[1759976977174,0.13722737,122140.0,122130.0,1.08468421]
[1759976977979,0.13722737,122140.0,122130.0,0.34148421]
[1759976978373,0.13722737,122140.0,122130.0,1.08460421]
[1759976978568,0.13722737,122140.0,122130.0,0.25962071]
[1759976978776,0.53722737,122140.0,122130.0,1.00270071]
[1759976979081,0.53722737,122140.0,122130.0,0.74769]
[1759976979379,0.53722737,122140.0,122130.0,0.25962071]
[1759976979580,0.53722737,122140.0,122130.0,1.00278071]
[1759976979880,0.53722737,122140.0,122130.0,0.25962071]
[1759976980076,0.53722737,122140.0,122130.0,1.00278071]
[1759976980270,0.89802737,122140.0,122130.0,1.00274071]
[1759976980678,0.89802737,122140.0,122130.0,0.74612]
[1759976980880,0.89802737,122140.0,122130.0,1.00274071]
[1759976981075,0.89802737,122140.0,122130.0,1.00282071]
[1759976981380,0.89802737,122140.0,122130.0,0.25962071]
[1759976981582,0.89802737,122140.0,122130.0,0.003]
[1759976981782,0.89802737,122140.0,122130.0,0.7462]
[1759976981982,0.89802737,122140.0,122130.0,0.74628]
[1759976982374,0.49802737,122140.0,122130.0,0.003]
[1759976982683,0.49802737,122140.0,122130.0,0.4808]
[1759976982987,0.49802737,122140.0,122130.0,0.74624]
[1759976983179,0.50605214,122140.0,122130.0,0.74624]
[1759976983373,0.50605214,122140.0,122130.0,0.003]
[1759976983573,0.50605214,122140.0,122130.0,0.74624]
[1759976983880,0.90605214,122140.0,122130.0,0.003]
[1759976984082,0.1173502,122120.0,122110.0,0.25662071]
[1759976984276,0.13667077,122120.0,122110.0,0.33849761]
[1759976984482,0.13667077,122120.0,122110.0,1.08169761]
[1759976984889,0.13667077,122120.0,122110.0,0.25662071]
[1759976985183,0.13767077,122120.0,122110.0,0.25962071]
[1759976985580,0.13767077,122120.0,122110.0,1.00278071]
[1759976986178,0.49847077,122120.0,122110.0,1.00778071]
[1759976986380,0.49847077,122120.0,122110.0,0.34649761]
[1759976986586,0.49847077,122120.0,122110.0,1.08965761]
[1759976986787,0.49847077,122120.0,122110.0,1.08465761]
[1759976986989,0.49847077,122120.0,122110.0,1.08565761]
[1759976987182,0.49747077,122120.0,122110.0,1.08265761]
[1759976987383,0.49847077,122120.0,122110.0,1.08365761]
[1759976989186,0.13767077,122120.0,122110.0,1.08365761]
[1759976989489,0.13767077,122120.0,122110.0,0.70129761]
[1759976989694,0.11562077,122120.0,122110.0,1.69930832]
[1759976990291,0.11562077,122120.0,122110.0,0.70129761]
[1759976990492,0.11562077,122120.0,122110.0,1.44433761]
[1759976991790,0.11562077,122120.0,122110.0,0.70129761]
[1759976991994,0.11562077,122120.0,122110.0,1.44425761]
[1759976992890,0.11562077,122120.0,122110.0,0.70129761]
[1759976993291,0.11562077,122120.0,122110.0,1.44421761]
[1759976993595,0.10219077,122120.0,122110.0,0.70129761]
[1759976993894,0.10219077,122120.0,122110.0,1.44417761]
[1759976994995,0.10219077,122120.0,122110.0,0.70129761]
[1759976995198,0.10219077,122120.0,122110.0,1.44417761]
[1759976997999,0.10219077,122120.0,122110.0,1.57175084]
[1759976999908,0.02032057,122120.0,122110.0,2.16306281]
[1759977000398,0.10219077,122120.0,122110.0,1.22891084]
[1759977000603,0.10219077,122120.0,122110.0,1.97175084]
[1759977001199,0.11562077,122120.0,122110.0,1.22891084]
[1759977001401,0.13767077,122120.0,122110.0,1.5891269]
[1759977001605,0.13767077,122120.0,122110.0,1.97175084]
[1759977001804,0.13767077,122120.0,122110.0,1.22891084]
[1759977002105,0.11562077,122120.0,122110.0,1.97175084]
[1759977003808,0.11562077,122120.0,122110.0,1.22891084]
[1759977004009,0.11562077,122120.0,122110.0,0.74703394]
[1759977004010,0.13767077,122120.0,122110.0,0.74703394]
[1759977004211,0.13767077,122120.0,122110.0,1.57175084]
[1759977004710,0.13767077,122120.0,122110.0,1.21095084]
[1759977005308,0.13767077,122120.0,122110.0,1.47535084]
[1759977005807,0.13767077,122120.0,122110.0,0.73251084]
[1759977006007,0.13767077,122120.0,122110.0,1.47535084]
[1759977006209,0.05580057,122120.0,122110.0,1.09331084]
[1759977006415,0.13767077,122120.0,122110.0,1.83615084]
[1759977009712,0.13767077,122120.0,122110.0,0.38623394]
[1759977010017,0.13767077,122120.0,122110.0,1.12907394]
[1759977010220,0.13767077,122120.0,122110.0,0.46811084]
[1759977010515,0.05580057,122120.0,122110.0,1.02022281]
[1759977010707,0.02032057,122120.0,122110.0,1.42022281]
[1759977011007,0.02032057,122120.0,122110.0,2.16306281]
[1759977011410,0.02032057,122120.0,122110.0,1.42022281]
[1759977011611,0.02032057,122120.0,122110.0,2.16306281]
[1759977012013,0.02032057,122120.0,122110.0,1.42022281]
[1759977012207,0.02032057,122120.0,122110.0,2.16306281]
[1759977012605,0.02032057,122120.0,122110.0,1.42022281]
[1759977012809,0.02032057,122120.0,122110.0,2.16306281]
[1759977015216,0.10219077,122120.0,122110.0,1.42022281]
[1759977015517,0.02032057,122120.0,122110.0,2.16306281]
[1759977016224,0.02032057,122120.0,122110.0,1.42022281]
[1759977016420,0.02032057,122120.0,122110.0,2.16306281]
[1759977017515,0.02032057,122120.0,122110.0,1.42022281]
[1759977017820,0.02032057,122120.0,122110.0,2.16302281]
[1759977018622,0.02032057,122120.0,122110.0,1.42022281]
[1759977018826,0.02032057,122120.0,122110.0,2.16302281]
[1759977020620,0.02032057,122120.0,122110.0,1.42022281]
[1759977020821,0.02032057,122120.0,122110.0,2.16302281]
[1759977021524,0.1175261,122150.0,122140.0,0.0834668]
[1759977021823,0.1175261,122150.0,122140.0,1.01757877]
[1759977022016,0.1175261,122150.0,122140.0,1.40020271]
[1759977022821,0.1175261,122150.0,122140.0,1.40921693]
[1759977023020,0.1215261,122150.0,122140.0,1.40921693]
[1759977023222,0.1275261,122150.0,122140.0,1.40921693]
[1759977024116,0.1185261,122150.0,122140.0,1.40921693]
[1759977024828,0.1185261,122150.0,122140.0,1.77001693]
[1759977027426,0.1185261,122150.0,122140.0,1.01920271]
[1759977027626,0.1185261,122150.0,122140.0,1.57065074]
[1759977027921,0.1185261,122150.0,122140.0,1.76196271]
[1759977028323,0.01446,122150.0,122140.0,1.76196271]
[1759977029030,0.01446,122150.0,122140.0,1.76192271]
[1759977029319,0.01446,122150.0,122140.0,1.01920271]
[1759977029524,0.0963101,122150.0,122140.0,1.76192271]
[1759977033328,0.0828501,122150.0,122140.0,1.76192271]
[1759977033629,0.0201404,122150.0,122140.0,1.76188271]
[1759977033830,0.001,122150.0,122140.0,1.76188271]
[1759977034127,0.001,122150.0,122140.0,1.41920271]
[1759977034328,0.001,122150.0,122140.0,2.16188271]
[1759977034625,0.0956602,122170.0,122160.0,0.0834534]
[1759977034825,0.03296006,122170.0,122160.0,1.01818931]
[1759977035123,0.03296006,122170.0,122160.0,1.76086931]
[1759977035723,0.03496006,122170.0,122160.0,1.76186931]
[1759977035920,0.03896006,122170.0,122160.0,1.76186931]
[1759977036126,0.02514006,122170.0,122160.0,1.76186931]
[1759977036529,0.12016676,122170.0,122160.0,1.01918931]
[1759977036829,0.12016676,122170.0,122160.0,1.76182931]
[1759977037326,0.12016676,122170.0,122160.0,1.01918931]
[1759977037531,0.12016676,122170.0,122160.0,1.76182931]
[1759977039627,0.03833006,122170.0,122160.0,1.76182931]
[1759977039933,0.02514006,122170.0,122160.0,1.41918931]
[1759977040128,0.02514006,122170.0,122160.0,2.16178931]
[1759977040530,0.02514006,122170.0,122160.0,2.52258931]
[1759977041930,0.1180749,122190.0,122180.0,0.08344]
[1759977042232,0.1180749,122190.0,122180.0,1.76073591]
[1759977042434,0.0950149,122190.0,122180.0,1.01817591]
[1759977042624,0.0950149,122190.0,122180.0,1.76073591]
[1759977043028,0.0950149,122190.0,122180.0,1.76877377]
[1759977043324,0.0828249,122190.0,122180.0,2.13057377]
[1759977043631,0.0828233,122190.0,122180.0,2.13057377]
[1759977044236,0.0828233,122190.0,122180.0,1.38801377]
[1759977044426,0.001,122190.0,122180.0,1.38801377]
[1759977044624,0.001,122190.0,122180.0,2.13053377]
[1759977044625,0.0828233,122190.0,122180.0,2.13053377]
[1759977045032,0.0828233,122190.0,122180.0,2.19762118]
[1759977045735,0.0955533,122190.0,122180.0,2.19762118]
[1759977047743,0.0955533,122190.0,122180.0,1.45510118]
[1759977048037,0.0955533,122190.0,122180.0,2.19754118]
[1759977048540,0.0955533,122190.0,122180.0,1.45510118]
[1759977048743,0.0955533,122190.0,122180.0,2.19754118]
[1759977051233,0.001,122190.0,122180.0,2.19754118]
[1759977051436,0.001,122190.0,122180.0,1.45510118]
[1759977051939,0.001,122190.0,122180.0,2.19750118]
[1759977052542,0.1181882,122220.0,122210.0,0.0834199]
[1759977052736,0.1181882,122220.0,122210.0,0.8258199]
[1759977052935,0.1181882,122220.0,122210.0,0.38423394]
[1759977053138,0.1181882,122220.0,122210.0,1.20844384]
[1759977053838,0.13711922,122220.0,122210.0,1.56924384]
[1759977054235,0.13711922,122220.0,122210.0,0.82684384]
[1759977054441,0.13711922,122220.0,122210.0,1.56920384]
[1759977054635,0.14011922,122220.0,122210.0,0.82684384]
[1759977054940,0.14311922,122220.0,122210.0,1.57020384]
[1759977055744,0.14311422,122220.0,122210.0,0.80921397]
[1759977055938,0.14311422,122220.0,122210.0,1.55157397]
[1759977057946,0.14311422,122220.0,122210.0,1.42361481]